fUST/lending_fUST_20250713
["ID","MTS","AMOUNT","RATE_DAILY","PERIOD"]
[371747893,1752414654344,-460.0,0.00019452,2]
[371747894,1752414654353,-151.0,0.00019452,2]
[371747895,1752414654362,-520.01,0.00019452,2]
[371747896,1752414654371,-460.0,0.00019452,2]
[371747897,1752414654380,-513.54,0.00019452,2]
[371747898,1752414654389,-460.0,0.00019452,2]
[371747899,1752414654398,-460.0,0.00019452,2]
[371747900,1752414654408,-460.0,0.00019452,2]
[371747901,1752414654418,-460.0,0.00019452,2]
[371747902,1752414654427,-460.0,0.00019452,2]
[371747903,1752414654437,-1801.81,0.00019452,2]
[371747904,1752414654447,-2722.19,0.00019452,2]
[371747905,1752414654456,-460.0,0.00019452,2]
[371747906,1752414654466,-470.25,0.00019452,2]
[371747907,1752414654475,-460.0,0.00019452,2]
[371747908,1752414654485,-460.0,0.00019452,2]
[371747909,1752414654494,-639.66,0.00019452,2]
[371747910,1752414654504,-460.0,0.00019452,2]
[371747911,1752414654513,-460.0,0.00019452,2]
[371747912,1752414654522,-640.34,0.00019452,2]
[371747913,1752414654532,-517.2,0.00019452,2]
[371747914,1752414654542,-460.0,0.00019452,2]
[371747915,1752414654551,-722.03,0.00019452,2]
[371747916,1752414654560,-1105.55,0.00019452,2]
[371747917,1752414654570,-460.0,0.00019452,2]
[371747918,1752414654579,-1761.42,0.00019452,2]
[371747919,1752414654589,-151.0,0.00019452,2]
[371747920,1752414654598,-573.94,0.00019452,2]
[371747921,1752414654608,-460.0,0.00019452,2]
[371747922,1752414654617,-1066.1,0.00019452,2]
[371747923,1752414654626,-460.0,0.00019452,2]
[371747924,1752414654635,-781.97,0.00019452,2]
[371747925,1752414654644,-460.0,0.00019452,2]
[371747926,1752414654653,-460.0,0.00019452,2]
[371747927,1752414654663,-460.0,0.00019452,2]
[371747928,1752414654674,-506.63,0.00019452,2]
[371747929,1752414654683,-2827.39,0.00019452,2]
[371747930,1752414654693,-460.0,0.00019452,2]
[371747931,1752414654706,-570.8,0.00019452,2]
[371747932,1752414654716,-460.0,0.00019452,2]
[371747933,1752414654725,-272.86,0.00019452,2]
[371747934,1752414654734,-599.24,0.00019452,2]
[371747935,1752414654744,-500.0,0.00019502,2]
[371747936,1752414654754,-836.55255679,0.00019512,2]
[371747937,1752414654763,-360.0,0.00019575,2]
[371747938,1752414654773,-460.0,0.00019616,2]
[371747939,1752414654783,-995.17,0.00019616,2]
[371747940,1752414654792,-609.7,0.00019616,2]
[371747941,1752414654801,-1274.01,0.00019616,2]
[371747942,1752414654811,-598.34,0.00019616,2]
[371747943,1752414654821,-460.0,0.00019616,2]
[371747944,1752414654831,-973.85,0.00019616,2]
[371747945,1752414654840,-587.0,0.00019631,2]
[371747946,1752414654850,-260.56377101,0.00019693,2]
[371747947,1752414654863,-460.0,0.00019726,2]
[371747948,1752414654872,-520.01,0.00019726,2]
[371747949,1752414654882,-460.0,0.00019726,2]
[371747950,1752414654891,-513.54,0.00019726,2]
[371747951,1752414654902,-460.0,0.00019726,2]
[371747952,1752414654911,-460.0,0.00019726,2]
[371747953,1752414654922,-460.0,0.00019726,2]
[371747954,1752414654931,-460.0,0.00019726,2]
[371747955,1752414654941,-361.6,0.00019726,2]
[371747956,1752414654951,-1801.81,0.00019726,2]
[371747957,1752414654960,-2722.19,0.00019726,2]
[371747958,1752414654969,-460.0,0.00019726,2]
[371747959,1752414654979,-470.25,0.00019726,2]
[371747960,1752414654989,-460.0,0.00019726,2]
[371747961,1752414654998,-460.0,0.00019726,2]
[371747962,1752414655009,-639.66,0.00019726,2]
[371747963,1752414655018,-460.0,0.00019726,2]
[371747964,1752414655028,-460.0,0.00019726,2]
[371747965,1752414655037,-640.34,0.00019726,2]
[371747966,1752414655047,-517.2,0.00019726,2]
[371747967,1752414655056,-460.0,0.00019726,2]
[371747968,1752414655065,-722.03,0.00019726,2]
[371747969,1752414655075,-460.0,0.00019726,2]
[371747970,1752414655084,-1105.55,0.00019726,2]
[371747971,1752414655094,-1761.42,0.00019726,2]
[371747972,1752414655103,-573.94,0.00019726,2]
[371747973,1752414655113,-432.39226932,0.00019726,2]
[371747974,1752414655123,-1066.1,0.00019726,2]
[371747975,1752414655133,-460.0,0.00019726,2]
[371747976,1752414655142,-781.97,0.00019726,2]
[371747977,1752414655151,-460.0,0.00019726,2]
[371747978,1752414655161,-460.0,0.00019726,2]
[371747979,1752414655255,-460.0,0.00019726,2]
[371747980,1752414655266,-506.63,0.00019726,2]
[371747981,1752414655276,-2827.39,0.00019726,2]
[371747982,1752414655286,-460.0,0.00019726,2]
[371747983,1752414655296,-570.8,0.00019726,2]
[371747984,1752414655305,-460.0,0.00019726,2]
[371747985,1752414655315,-599.24,0.00019726,2]
[371747986,1752414655324,-2577.86275696,0.00019762,2]
[371747987,1752414655334,-505.49074743,0.00019803,2]
[371747988,1752414655343,-460.0,0.0001989,2]
[371747989,1752414655352,-995.17,0.0001989,2]
[371747990,1752414655361,-609.7,0.0001989,2]
[371747991,1752414655371,-1274.01,0.0001989,2]
[371747992,1752414655381,-598.34,0.0001989,2]
[371747993,1752414655390,-460.0,0.0001989,2]
[371747994,1752414655400,-973.85,0.0001989,2]
[371747995,1752414655409,-1000.0,0.00019921,2]
[371747996,1752414655419,-4332.31504267,0.00019999,2]
[371747997,1752414655428,-3396.57186598,0.00019999,2]
[371747998,1752414655438,-4277.38853402,0.0002,2]
[371747999,1752414655447,-1769.22730103,0.0002,4]
[371748000,1752414655457,-17108.01776411,0.0002,2]
[371748001,1752414655466,-460.0,0.0002,2]
[371748002,1752414655475,-520.01,0.0002,2]
[371748003,1752414655484,-460.0,0.0002,2]
[371748004,1752414655494,-513.54,0.0002,2]
[371748005,1752414655505,-460.0,0.0002,2]
[371748006,1752414655514,-460.0,0.0002,2]
[371748007,1752414655523,-460.0,0.0002,2]
[371748008,1752414655532,-460.0,0.0002,2]
[371748009,1752414655542,-1801.81,0.0002,2]
[371748010,1752414655551,-2722.19,0.0002,2]
[371748011,1752414655561,-460.0,0.0002,2]
[371748012,1752414655570,-470.25,0.0002,2]
[371748013,1752414655579,-460.0,0.0002,2]
[371748014,1752414655589,-460.0,0.0002,2]
[371748015,1752414655598,-639.66,0.0002,2]
[371748016,1752414655607,-460.0,0.0002,2]
[371748017,1752414655616,-460.0,0.0002,2]
[371748018,1752414655626,-640.34,0.0002,2]
[371748019,1752414655635,-517.2,0.0002,2]
[371748020,1752414655644,-460.0,0.0002,2]
[371748021,1752414655653,-722.03,0.0002,2]
[371748022,1752414655663,-460.0,0.0002,2]
[371748023,1752414655674,-1105.55,0.0002,2]
[371748024,1752414655683,-1761.42,0.0002,2]
[371748025,1752414655692,-573.94,0.0002,2]
[371748026,1752414655702,-1066.1,0.0002,2]
[371748027,1752414655711,-460.0,0.0002,2]
[371748028,1752414655721,-781.97,0.0002,2]
[371748029,1752414655731,-460.0,0.0002,2]
[371748030,1752414655740,-460.0,0.0002,2]
[371748031,1752414655750,-460.0,0.0002,2]
[371748032,1752414655760,-506.63,0.0002,2]
[371748033,1752414655770,-2827.39,0.0002,2]
[371748034,1752414655780,-244.26,0.0002,2]
[371748035,1752414655789,-570.8,0.0002,2]
[371748036,1752414655799,-460.0,0.0002,2]
[371748037,1752414655809,-599.24,0.0002,2]
[371748038,1752414655818,-260.56377101,0.00020003,2]
[371748039,1752414655828,-460.0,0.00020123,2]
[371748040,1752414655838,-186.74614867,0.00020145,2]
[371748041,1752414655848,-460.0,0.00020164,2]
[371748042,1752414655857,-995.17,0.00020164,2]
[371748043,1752414655867,-609.7,0.00020164,2]
[371748044,1752414655877,-1274.01,0.00020164,2]
[371748045,1752414655888,-598.34,0.00020164,2]
[371748046,1752414655898,-460.0,0.00020164,2]
[371748047,1752414655909,-973.85,0.00020164,2]
[371748048,1752414655919,-496.931123,0.00020187,2]
[371748049,1752414655929,-273.60939396,0.00020273,2]
[371748050,1752414655938,-520.01,0.00020273,2]
[371748051,1752414655947,-460.0,0.00020273,2]
[371748052,1752414655957,-513.54,0.00020273,2]
[371748053,1752414655967,-460.0,0.00020273,2]
[371748054,1752414655977,-460.0,0.00020273,2]
[371748055,1752414655987,-483.55,0.00020273,2]
[371748056,1752414655996,-460.0,0.00020273,2]
[371748057,1752414656006,-311.430858,0.00020273,2]
[371748058,1752414656016,-311.430858,0.00020273,2]
[371748059,1752414656025,-1801.81,0.00020273,2]
[371748060,1752414656035,-2722.19,0.00020273,2]
[371748061,1752414656044,-460.0,0.00020273,2]
[371748062,1752414656054,-470.25,0.00020273,2]
[371748063,1752414656063,-151.0,0.00020273,2]
[371748064,1752414656073,-460.0,0.00020273,2]
[371748065,1752414656082,-460.0,0.00020273,2]
[371748066,1752414656092,-639.66,0.00020273,2]
[371748067,1752414656101,-460.0,0.00020273,2]
[371748068,1752414656111,-460.0,0.00020273,2]
[371748069,1752414656120,-640.34,0.00020273,2]
[371748070,1752414656129,-517.2,0.00020273,2]
[371748071,1752414656139,-460.0,0.00020273,2]
[371748072,1752414656148,-722.03,0.00020273,2]
[371748073,1752414656159,-460.0,0.00020273,2]
[371748074,1752414656169,-1105.55,0.00020273,2]
[371748075,1752414656179,-1761.42,0.00020273,2]
[371748076,1752414656191,-573.94,0.00020273,2]
[371748077,1752414656206,-1066.1,0.00020273,2]
[371748078,1752414656217,-460.0,0.00020273,2]
[371748079,1752414656226,-781.97,0.00020273,2]
[371748080,1752414656236,-460.0,0.00020273,2]
[371748081,1752414656247,-460.0,0.00020273,2]
[371748082,1752414656257,-460.0,0.00020273,2]
[371748083,1752414656268,-506.63,0.00020273,2]
[371748084,1752414656280,-2827.39,0.00020273,2]
[371748085,1752414656291,-570.8,0.00020273,2]
[371748086,1752414656302,-598.06,0.00020273,2]
[371748087,1752414656312,-599.24,0.00020273,2]
[371748088,1752414656321,-260.56377101,0.00020314,3]
[371748089,1752414656331,-460.0,0.00020438,2]
[371748090,1752414656341,-995.17,0.00020438,2]
[371748091,1752414656352,-609.7,0.00020438,2]
[371748092,1752414656362,-1274.01,0.00020438,2]
[371748093,1752414656372,-598.34,0.00020438,2]
[371748094,1752414656381,-460.0,0.00020438,2]
[371748095,1752414656391,-973.85,0.00020438,2]
[371748096,1752414656401,-392.302373,0.00020546,2]
[371748097,1752414656411,-392.302373,0.00020546,2]
[371748098,1752414656421,-151.0,0.00020546,2]
[371748099,1752414656431,-151.0,0.00020546,2]
[371748100,1752414656441,-151.0,0.00020546,2]
[371748101,1752414656451,-520.01,0.00020547,2]
[371748102,1752414656462,-460.0,0.00020547,2]
[371748103,1752414656471,-513.54,0.00020547,2]
[371748104,1752414656481,-151.0,0.00020547,2]
[371748105,1752414656491,-460.0,0.00020547,2]
[371748106,1752414656501,-460.0,0.00020547,2]
[371748107,1752414656511,-1801.81,0.00020547,2]
[371748108,1752414656521,-2722.19,0.00020547,2]
[371748109,1752414656530,-460.0,0.00020547,2]
[371748110,1752414656541,-470.25,0.00020547,2]
[371748111,1752414656551,-460.0,0.00020547,2]
[371748112,1752414656561,-460.0,0.00020547,2]
[371748113,1752414656571,-639.66,0.00020547,2]
[371748114,1752414656581,-495.55339422,0.00020547,2]
[371748115,1752414656591,-640.34,0.00020547,2]
[371748116,1752414656601,-517.2,0.00020547,2]
[371748117,1752414656611,-460.0,0.00020547,2]
[371748118,1752414656621,-722.03,0.00020547,2]
[371748119,1752414656631,-460.0,0.00020547,2]
[371748120,1752414656640,-1105.55,0.00020547,2]
[371748121,1752414656650,-1761.42,0.00020547,2]
[371748122,1752414656660,-573.94,0.00020547,2]
[371748123,1752414656671,-1066.1,0.00020547,2]
[371748124,1752414656681,-460.0,0.00020547,2]
[371748125,1752414656691,-781.97,0.00020547,2]
[371748126,1752414656701,-460.0,0.00020547,2]
[371748127,1752414656711,-460.0,0.00020547,2]
[371748128,1752414656723,-460.0,0.00020547,2]
[371748129,1752414656733,-506.63,0.00020547,2]
[371748130,1752414656743,-2827.39,0.00020547,2]
[371748131,1752414656753,-570.8,0.00020547,2]
[371748132,1752414656763,-599.24,0.00020547,2]
[371748133,1752414656773,-260.56377101,0.00020624,3]
[371748134,1752414656784,-560.0,0.00020671,2]
[371748135,1752414656794,-460.0,0.00020712,2]
[371748136,1752414656803,-995.17,0.00020712,2]
[371748137,1752414656814,-609.7,0.00020712,2]
[371748138,1752414656824,-1274.01,0.00020712,2]
[371748139,1752414656834,-598.34,0.00020712,2]
[371748140,1752414656844,-460.0,0.00020712,2]
[371748141,1752414656854,-973.85,0.00020712,2]
[371748142,1752414656863,-151.0,0.00020719,4]
[371748143,1752414656874,-170.11988252,0.00020721,2]
[371748144,1752414656884,-2577.86275696,0.00020721,2]
[371748145,1752414656897,-305.058,0.00020741,2]
[371748146,1752414656906,-151.0,0.00020821,2]
[371748147,1752414656916,-151.0,0.00020821,2]
[371748148,1752414656929,-265.8855499,0.00020821,2]
[371748149,1752414656939,-314.00247,0.00020821,2]
[371748150,1752414656949,-314.00247,0.00020821,2]
[371748151,1752414656958,-520.01,0.00020821,2]
[371748152,1752414656968,-460.0,0.00020821,2]
[371748153,1752414656977,-513.54,0.00020821,2]
[371748154,1752414656987,-460.0,0.00020821,2]
[371748155,1752414656997,-235.08701847,0.00020821,2]
[371748156,1752414657007,-1801.81,0.00020821,2]
[371748157,1752414657017,-2722.19,0.00020821,2]
[371748158,1752414657028,-460.0,0.00020821,2]
[371748159,1752414657038,-470.25,0.00020821,2]
[371748160,1752414657048,-460.0,0.00020821,2]
[371748161,1752414657058,-460.0,0.00020821,2]
[371748162,1752414657069,-639.66,0.00020821,2]
[371748163,1752414657079,-640.34,0.00020821,2]
[371748164,1752414657168,-517.2,0.00020821,2]
[371748165,1752414657179,-460.0,0.00020821,2]
[371748166,1752414657189,-722.03,0.00020821,2]
[371748167,1752414657202,-1105.55,0.00020821,2]
[371748168,1752414657213,-1761.42,0.00020821,2]
[371748169,1752414657222,-573.94,0.00020821,2]
[371748170,1752414657232,-1066.1,0.00020821,2]
[371748171,1752414657242,-460.0,0.00020821,2]
[371748172,1752414657252,-781.97,0.00020821,2]
[371748173,1752414657261,-460.0,0.00020821,2]
[371748174,1752414657272,-460.0,0.00020821,2]
[371748175,1752414657282,-460.0,0.00020821,2]
[371748176,1752414657292,-506.63,0.00020821,2]
[371748177,1752414657301,-2827.39,0.00020821,2]
[371748178,1752414657311,-570.8,0.00020821,2]
[371748179,1752414657321,-599.24,0.00020821,2]
[371748180,1752414657331,-260.56377101,0.00020934,4]
[371748181,1752414657341,-460.0,0.00020986,2]
[371748182,1752414657351,-995.17,0.00020986,2]
[371748183,1752414657362,-609.7,0.00020986,2]
[371748184,1752414657372,-1274.01,0.00020986,2]
[371748185,1752414657382,-598.34,0.00020986,2]
[371748186,1752414657392,-460.0,0.00020986,2]
[371748187,1752414657402,-973.85,0.00020986,2]
[371748188,1752414657412,-840.25,0.00021,2]
[371748189,1752414657424,-520.01,0.00021095,2]
[371748190,1752414657434,-460.0,0.00021095,2]
[371748191,1752414657444,-513.54,0.00021095,2]
[371748192,1752414657455,-460.0,0.00021095,2]
[371748193,1752414657465,-1801.81,0.00021095,2]
[371748194,1752414657476,-2722.19,0.00021095,2]
[371748195,1752414657486,-460.0,0.00021095,2]
[371748196,1752414657496,-470.25,0.00021095,2]
[371748197,1752414657506,-460.0,0.00021095,2]
[371748198,1752414657515,-460.0,0.00021095,2]
[371748199,1752414657526,-639.66,0.00021095,2]
[371748200,1752414657537,-640.34,0.00021095,2]
[371748201,1752414657548,-517.2,0.00021095,2]
[371748202,1752414657560,-460.0,0.00021095,2]
[371748203,1752414657571,-722.03,0.00021095,2]
[371748204,1752414657581,-1105.55,0.00021095,2]
[371748205,1752414657591,-1761.42,0.00021095,2]
[371748206,1752414657600,-573.94,0.00021095,2]
[371748207,1752414657611,-1066.1,0.00021095,2]
[371748208,1752414657621,-460.0,0.00021095,2]
[371748209,1752414657631,-781.97,0.00021095,2]
[371748210,1752414657641,-310.80980338,0.00021095,2]
[371748211,1752414657651,-460.0,0.00021095,2]
[371748212,1752414657660,-460.0,0.00021095,2]
[371748213,1752414657671,-506.63,0.00021095,2]
[371748214,1752414657681,-2827.39,0.00021095,2]
[371748215,1752414657691,-570.8,0.00021095,2]
[371748216,1752414657700,-599.24,0.00021095,2]
[371748217,1752414657710,-1643.43,0.000212,2]
[371748218,1752414657719,-3199.64,0.000212,2]
[371748219,1752414657730,-180.0,0.00021219,2]
[371748220,1752414657739,-151.0,0.00021242,4]
[371748221,1752414657749,-260.56377101,0.00021245,4]
[371748222,1752414657759,-229.491739,0.0002126,2]
[371748223,1752414657769,-229.491739,0.0002126,2]
[371748224,1752414657779,-151.0,0.0002126,2]
[371748225,1752414657788,-460.0,0.0002126,2]
[371748226,1752414657798,-995.17,0.0002126,2]
[371748227,1752414657808,-609.7,0.0002126,2]
[371748228,1752414657819,-1274.01,0.0002126,2]
[371748229,1752414657829,-598.34,0.0002126,2]
[371748230,1752414657839,-460.0,0.0002126,2]
[371748231,1752414657850,-973.85,0.0002126,2]
[371748232,1752414657860,-151.0,0.00021369,2]
[371748233,1752414657870,-151.0,0.00021369,2]
[371748234,1752414657880,-520.01,0.00021369,2]
[371748235,1752414657890,-460.0,0.00021369,2]
[371748236,1752414657901,-513.54,0.00021369,2]
[371748237,1752414657910,-460.0,0.00021369,2]
[371748238,1752414657921,-1801.81,0.00021369,2]
[371748239,1752414657931,-2722.19,0.00021369,2]
[371748240,1752414657941,-460.0,0.00021369,2]
[371748241,1752414657950,-470.25,0.00021369,2]
[371748242,1752414657960,-460.0,0.00021369,2]
[371748243,1752414657970,-460.0,0.00021369,2]
[371748244,1752414657980,-639.66,0.00021369,2]
[371748245,1752414657991,-640.34,0.00021369,2]
[371748246,1752414658001,-517.2,0.00021369,2]
[371748247,1752414658012,-542.25766755,0.00021369,2]
[371748248,1752414658022,-722.03,0.00021369,2]
[371748249,1752414658032,-1105.55,0.00021369,2]
[371748250,1752414658042,-1761.42,0.00021369,2]
[371748251,1752414658053,-573.94,0.00021369,2]
[371748252,1752414658063,-1066.1,0.00021369,2]
[371748253,1752414658073,-460.0,0.00021369,2]
[371748254,1752414658083,-781.97,0.00021369,2]
[371748255,1752414658094,-460.0,0.00021369,2]
[371748256,1752414658106,-345.0,0.00021369,2]
[371748257,1752414658116,-506.63,0.00021369,2]
[371748258,1752414658126,-2827.39,0.00021369,2]
[371748259,1752414658136,-570.8,0.00021369,2]
[371748260,1752414658147,-599.24,0.00021369,2]
[371748261,1752414658157,-186.74614867,0.00021413,2]
[371748262,1752414658168,-711.0,0.00021454,2]
[371748263,1752414658179,-541.79715383,0.00021534,2]
[371748264,1752414658189,-995.17,0.00021534,2]
[371748265,1752414658203,-609.7,0.00021534,2]
[371748266,1752414658213,-1274.01,0.00021534,2]
[371748267,1752414658223,-598.34,0.00021534,2]
[371748268,1752414658232,-460.0,0.00021534,2]
[371748269,1752414658243,-973.85,0.00021534,2]
[371748270,1752414658253,-260.56377101,0.00021555,5]
[371748271,1752414658262,-1334.315197,0.000216,2]
[371748272,1752414658272,-1334.315197,0.000216,2]
[371748273,1752414658282,-240.524289,0.000216,2]
[371748274,1752414658292,-240.524289,0.000216,2]
[371748275,1752414658301,-180.27040561,0.00021641,2]
[371748276,1752414658311,-520.01,0.00021643,2]
[371748277,1752414658321,-460.0,0.00021643,2]
[371748278,1752414658330,-513.54,0.00021643,2]
[371748279,1752414658340,-460.0,0.00021643,2]
[371748280,1752414658350,-311.430858,0.00021643,2]
[371748281,1752414658360,-311.430858,0.00021643,2]
[371748282,1752414658369,-1801.81,0.00021643,2]
[371748283,1752414658379,-2722.19,0.00021643,2]
[371748284,1752414658388,-460.0,0.00021643,2]
[371748285,1752414658398,-470.25,0.00021643,2]
[371748286,1752414658408,-151.0,0.00021643,2]
[371748287,1752414658417,-460.0,0.00021643,2]
[371748288,1752414658428,-460.0,0.00021643,2]
[371748289,1752414658437,-639.66,0.00021643,2]
[371748290,1752414658447,-640.34,0.00021643,2]
[371748291,1752414658457,-517.2,0.00021643,2]
[371748292,1752414658467,-722.03,0.00021643,2]
[371748293,1752414658477,-1105.55,0.00021643,2]
[371748294,1752414658487,-1761.42,0.00021643,2]
[371748295,1752414658496,-573.94,0.00021643,2]
[371748296,1752414658506,-1066.1,0.00021643,2]
[371748297,1752414658516,-460.0,0.00021643,2]
[371748298,1752414658527,-781.97,0.00021643,2]
[371748299,1752414658536,-403.84,0.00021643,2]
[371748300,1752414658547,-506.63,0.00021643,2]
[371748301,1752414658557,-2827.39,0.00021643,2]
[371748302,1752414658567,-570.8,0.00021643,2]
[371748303,1752414658577,-599.24,0.00021643,2]
[371748304,1752414658587,-151.0,0.00021765,5]
[371748305,1752414658597,-995.17,0.00021808,2]
[371748306,1752414658606,-609.7,0.00021808,2]
[371748307,1752414658616,-1274.01,0.00021808,2]
[371748308,1752414658626,-598.34,0.00021808,2]
[371748309,1752414658635,-460.0,0.00021808,2]
[371748310,1752414658645,-973.85,0.00021808,2]
[371748311,1752414658654,-260.56377101,0.00021866,6]
[371748312,1752414658664,-209.0,0.00021891,2]
[371748313,1752414658676,-209.0,0.00021894,2]
[371748314,1752414658687,-520.01,0.00021917,2]
[371748315,1752414658697,-460.0,0.00021917,2]
[371748316,1752414658707,-513.54,0.00021917,2]
[371748317,1752414658717,-460.0,0.00021917,2]
[371748318,1752414658727,-1801.81,0.00021917,2]
[371748319,1752414658737,-2722.19,0.00021917,2]
[371748320,1752414658746,-460.0,0.00021917,2]
[371748321,1752414658756,-470.25,0.00021917,2]
[371748322,1752414658766,-460.0,0.00021917,2]
[371748323,1752414658776,-460.0,0.00021917,2]
[371748324,1752414658786,-639.66,0.00021917,2]
[371748325,1752414658796,-640.34,0.00021917,2]
[371748326,1752414658807,-517.2,0.00021917,2]
[371748327,1752414658816,-722.03,0.00021917,2]
[371748328,1752414658826,-1105.55,0.00021917,2]
[371748329,1752414658836,-1761.42,0.00021917,2]
[371748330,1752414658846,-573.94,0.00021917,2]
[371748331,1752414658856,-1066.1,0.00021917,2]
[371748332,1752414658866,-460.0,0.00021917,2]
[371748333,1752414658876,-781.97,0.00021917,2]
[371748334,1752414658887,-506.63,0.00021917,2]
[371748335,1752414658974,-2827.39,0.00021917,2]
[371748336,1752414658984,-570.8,0.00021917,2]
[371748337,1752414658994,-599.24,0.00021917,2]
[371748338,1752414659004,-1729.494,0.00021924,2]
[371748339,1752414659015,-407.0,0.00021924,2]
[371748340,1752414659025,-209.0,0.00021937,2]
[371748341,1752414659035,-1490.85738687,0.00022,2]
[371748342,1752414659044,-209.0,0.00022063,2]
[371748343,1752414659054,-209.0,0.00022068,2]
[371748344,1752414659063,-995.17,0.00022082,2]
[371748345,1752414659073,-609.7,0.00022082,2]
[371748346,1752414659083,-1274.01,0.00022082,2]
[371748347,1752414659093,-598.34,0.00022082,2]
[371748348,1752414659102,-460.0,0.00022082,2]
[371748349,1752414659112,-973.85,0.00022082,2]
[371748350,1752414659121,-209.0,0.00022132,2]
[371748351,1752414659131,-260.56377101,0.00022176,6]
[371748352,1752414659141,-392.302373,0.00022191,7]
[371748353,1752414659151,-392.302373,0.00022191,7]
[371748354,1752414659161,-151.0,0.00022191,7]
[371748355,1752414659171,-151.0,0.00022191,7]
[371748356,1752414659181,-520.01,0.00022191,2]
[371748357,1752414659191,-460.0,0.00022191,2]
[371748358,1752414659204,-151.0,0.00022191,7]
[371748359,1752414659213,-513.54,0.00022191,2]
[371748360,1752414659222,-151.0,0.00022191,7]
[371748361,1752414659232,-460.0,0.00022191,2]
[371748362,1752414659243,-1801.81,0.00022191,2]
[371748363,1752414659253,-2722.19,0.00022191,2]
[371748364,1752414659262,-460.0,0.00022191,2]
[371748365,1752414659273,-470.25,0.00022191,2]
[371748366,1752414659282,-460.0,0.00022191,2]
[371748367,1752414659292,-210.82,0.00022191,2]
[371748368,1752414659302,-639.66,0.00022191,2]
[371748369,1752414659311,-640.34,0.00022191,2]
[371748370,1752414659321,-517.2,0.00022191,2]
[371748371,1752414659331,-722.03,0.00022191,2]
[371748372,1752414659340,-1105.55,0.00022191,2]
[371748373,1752414659350,-1761.42,0.00022191,2]
[371748374,1752414659359,-573.94,0.00022191,2]
[371748375,1752414659369,-1066.1,0.00022191,2]
[371748376,1752414659378,-460.0,0.00022191,2]
[371748377,1752414659387,-781.97,0.00022191,2]
[371748378,1752414659397,-506.63,0.00022191,2]
[371748379,1752414659408,-2827.39,0.00022191,2]
[371748380,1752414659418,-570.8,0.00022191,2]
[371748381,1752414659430,-599.24,0.00022191,2]
[371748382,1752414659440,-209.0,0.00022233,2]
[371748383,1752414659449,-151.0,0.00022287,5]
[371748384,1752414659459,-995.17,0.00022356,2]
[371748385,1752414659468,-609.7,0.00022356,2]
[371748386,1752414659479,-1274.01,0.00022356,2]
[371748387,1752414659490,-598.34,0.00022356,2]
[371748388,1752414659500,-973.85,0.00022356,2]
[371748389,1752414659509,-209.0,0.00022458,2]
[371748390,1752414659519,-520.01,0.00022465,2]
[371748391,1752414659528,-419.68,0.00022465,2]
[371748392,1752414659538,-513.54,0.00022465,2]